[Event "World Senior chT-65 2019"]
[Site "Rhodes"]
[Date "2019.04.18"]
[Round "3.9"]
[White "Westerinen, Heikki M.J."]
[Black "Renman, Nils-Gustaf"]
[Result "0-1"]
[ECO "C09"]
[WhiteElo "2286"]
[BlackElo "2358"]
[PlyCount "66"]
[EventDate "2019.04.16"]
[EventType "team-tourn"]
[EventCountry "GRE"]
[TimeControl "40/5400+30:1800+30"]

1. e4 {[%emt 0:00:00]} e6 {[%emt 0:00:00]} 2. d4 {[%emt 0:00:00]} d5 {[%emt 0:00:00]} 3. Nd2 {[%emt 0:00:28]} c5 {[%emt 0:00:25]} 4. exd5 {[%emt 0:01:31]} exd5 {[%emt 0:00:11]} 5. Ngf3 {[%emt 0:00:51]} Nc6 {[%emt 0:00:09]} 6. Bb5 {[%emt 0:01:33]} Qe7+ {[%emt 0:00:37]} 7. Be2 {[%emt 0:00:36]} Qc7 {[%emt 0:00:12]} 8. O-O {[%emt 0:00:45]} Nf6 {[%emt 0:00:09]} 9. Re1 {[%emt 0:02:58]} cxd4 {[%emt 0:00:18]} 10. Nb3 {[%emt 0:07:40]} Bb4 {[%emt 0:04:59]} 11. Bd2 {[%emt 0:01:09]} Bxd2 {[%emt 0:00:10]} 12. Qxd2 {[%emt 0:00:48]} O-O {[%emt 0:00:03]} 13. Nbxd4 {[%emt 0:06:58]} Ne4 {[%emt 0:12:10]} 14. Qe3 {[%emt 0:07:28]} Re8 {[%emt 0:15:31]} 15. Qb3 {[%emt 0:07:39]} Bg4 {[%emt 0:06:28]} 16. Rad1 {[%emt 0:10:47]} Rad8 {[%emt 0:01:37]} 17. Nxc6 {[%emt 0:08:57]} bxc6 {[%emt 0:00:32]} 18. Nd4 {[%emt 0:00:20]} Rb8 {[%emt 0:03:28]} 19. Qa3 {[%emt 0:04:18]} Bxe2 {[%emt 0:06:12]} 20. Rxe2 {[%emt 0:00:15]} c5 {[%emt 0:05:45]} 21. Nf3 {[%emt 0:03:03]} d4 {[%emt 0:07:56]} 22. Rde1 {[%emt 0:01:46]} Qc6 {[%emt 0:03:09]} 23. Qd3 {[%emt 0:01:54]} f5 {[%emt 0:07:31]} 24. Qc4+ {[%emt 0:03:54]} Qe6 {[%emt 0:00:27]} 25. Qxe6+ {[%emt 0:01:12]} Rxe6 {[%emt 0:00:02]} 26. b3 {[%emt 0:03:05]} Ra6 {[%emt 0:05:56]} 27. a4 {[%emt 0:00:22]} Rd6 {[%emt 0:03:09]} 28. Nd2 {[%emt 0:09:53]} d3 {[%emt 0:02:26]} 29. Nxe4 {[%emt 0:00:26]} fxe4 {[%emt 0:00:05]} 30. Rd2 {[%emt 0:10:25]} c4 {[%emt 0:00:50]} 31. bxc4 {[%emt 0:00:36]} Rb2 {[%emt 0:00:22]} 32. Kf1 {[%emt 0:00:49]} dxc2 {[%emt 0:04:18]} 33. Rde2 {[%emt 0:03:12]} Rd1 {[%emt 0:01:00]} 0-1

[Event "World Senior chT-65 2019"]
[Site "Rhodes"]
[Date "2019.04.18"]
[Round "3.10"]
[White "Uddenfeldt, Dan"]
[Black "Rantanen, Yrjo A."]
[Result "1/2-1/2"]
[ECO "E34"]
[WhiteElo "2339"]
[BlackElo "2283"]
[PlyCount "86"]
[EventDate "2019.04.16"]
[EventType "team-tourn"]
[EventCountry "GRE"]
[TimeControl "40/5400+30:1800+30"]

1. d4 {[%emt 0:00:00]} Nf6 {[%emt 0:00:00]} 2. c4 {[%emt 0:00:51]} e6 {[%emt 0:00:00]} 3. Nc3 {[%emt 0:02:25]} Bb4 {[%emt 0:00:15]} 4. e3 {[%emt 0:01:56]} O-O {[%emt 0:04:46]} 5. Bd3 {[%emt 0:03:20]} d5 {[%emt 0:03:35]} 6. Qc2 {[%emt 0:03:13]} dxc4 {[%emt 0:01:58]} 7. Bxc4 {[%emt 0:00:00]} b6 {[%emt 0:01:22]} 8. Nge2 {[%emt 0:00:00]} Bb7 {[%emt 0:06:32]} 9. O-O {[%emt 0:01:49]} Nc6 {[%emt 0:06:50]} 10. f4 {[%emt 0:13:30]} Na5 {[%emt 0:08:05]} 11. Bd3 {[%emt 0:01:26]} c5 {[%emt 0:00:54]} 12. Ne4 {[%emt 0:02:15]} Bxe4 {[%emt 0:03:21]} 13. Bxe4 {[%emt 0:00:20]} Rc8 {[%emt 0:00:00]} 14. Qd3 {[%emt 0:03:15]} cxd4 {[%emt 0:07:21]} 15. Nxd4 {[%emt 0:02:19]} Nxe4 {[%emt 0:05:16]} 16. Qxe4 {[%emt 0:00:07]} Bc5 {[%emt 0:00:46]} 17. b3 {[%emt 0:01:19]} Bxd4 {[%emt 0:02:03]} 18. exd4 {[%emt 0:02:15]} Qd5 {[%emt 0:03:34]} 19. Qxd5 {[%emt 0:02:56]} exd5 {[%emt 0:00:09]} 20. Ba3 {[%emt 0:00:19]} Rfe8 {[%emt 0:01:15]} 21. Rfe1 {[%emt 0:02:47]} Nc6 {[%emt 0:01:37]} 22. Red1 {[%emt 0:09:33]} Re2 {[%emt 0:08:24]} 23. Rdc1 {[%emt 0:04:31]} Ree8 {[%emt 0:01:50]} 24. Bb2 {[%emt 0:04:02]} Nb4 {[%emt 0:00:38]} 25. Rxc8 {[%emt 0:00:00]} Rxc8 {[%emt 0:05:50]} 26. Rc1 {[%emt 0:00:00]} Rxc1+ {[%emt 0:06:00]} 27. Bxc1 {[%emt 0:00:00]} Nxa2 {[%emt 0:02:32]} 28. Bd2 {[%emt 0:00:00]} Kf8 {[%emt 0:00:05]} 29. f5 {[%emt 0:00:00]} Ke7 {[%emt 0:00:17]} 30. Kf2 {[%emt 0:00:00]} Kd7 {[%emt 0:01:08]} 31. Kf3 {[%emt 0:01:50]} f6 {[%emt 0:01:35]} 32. g4 {[%emt 0:01:30]} h6 {[%emt 0:02:17]} 33. h4 {[%emt 0:00:47]} a5 {[%emt 0:00:41]} 34. h5 {[%emt 0:00:00]} b5 {[%emt 0:08:17]} 35. Bxa5 {[%emt 0:00:00]} Nc1 {[%emt 0:05:12]} 36. Ke3 {[%emt 0:00:00]} Nxb3 {[%emt 0:00:30]} 37. Bb4 {[%emt 0:00:00]} Ke8 {[%emt 0:00:09]} 38. Bc3 {[%emt 0:07:25]} Nc1 {[%emt 0:01:17]} 39. Kd2 {[%emt 0:01:02]} Na2 {[%emt 0:02:56]} 40. Kc2 {[%emt 0:00:00]} Nxc3 {[%emt 0:00:46]} 41. Kxc3 {[%emt 0:03:09]} Kd7 {[%emt 0:00:00]} 42. Kb4 {[%emt 0:00:14]} Kc6 {[%emt 0:00:00]} 43. Ka5 {[%emt 0:00:11]} b4 {[%emt 0:00:55]} 1/2-1/2

[Event "World Senior chT-65 2019"]
[Site "Rhodes"]
[Date "2019.04.18"]
[Round "3.11"]
[White "Hurme, Harri"]
[Black "Hammar, Bengt"]
[Result "1-0"]
[ECO "E71"]
[WhiteElo "2148"]
[BlackElo "2206"]
[PlyCount "59"]
[EventDate "2019.04.16"]
[EventType "team-tourn"]
[EventCountry "GRE"]
[TimeControl "40/5400+30:1800+30"]

1. d4 {[%emt 0:00:00]} Nf6 {[%emt 0:00:27]} 2. c4 {[%emt 0:00:00]} g6 {[%emt 0:00:13]} 3. Nc3 {[%emt 0:00:00]} Bg7 {[%emt 0:02:07]} 4. e4 {[%emt 0:00:00]} d6 {[%emt 0:00:20]} 5. h3 {[%emt 0:00:20]} O-O {[%emt 0:00:46]} 6. Bg5 {[%emt 0:00:11]} c5 {[%emt 0:03:05]} 7. d5 {[%emt 0:00:45]} h6 {[%emt 0:00:18]} 8. Be3 {[%emt 0:00:40]} e6 {[%emt 0:00:53]} 9. Bd3 {[%emt 0:02:46]} exd5 10. exd5 {[%emt 0:01:58]} Nbd7 {[%emt 0:03:18]} 11. Nf3 {[%emt 0:00:00]} Re8 {[%emt 0:02:48]} 12. O-O {[%emt 0:01:11]} Ne5 {[%emt 0:01:21]} 13. Nxe5 {[%emt 0:00:00]} Rxe5 {[%emt 0:00:11]} 14. Qd2 {[%emt 0:00:38]} Kh7 {[%emt 0:02:39]} 15. Bf4 {[%emt 0:02:43]} Re8 {[%emt 0:00:00]} 16. Rae1 {[%emt 0:02:05]} a6 {[%emt 0:01:13]} 17. a4 {[%emt 0:01:06]} b6 {[%emt 0:04:12]} 18. g4 {[%emt 0:06:19]} Ra7 {[%emt 0:10:18]} 19. Kg2 {[%emt 0:06:49]} Rae7 {[%emt 0:03:26]} 20. f3 {[%emt 0:02:45]} Qc7 {[%emt 0:07:19]} 21. h4 {[%emt 0:05:50]} h5 {[%emt 0:00:00]} 22. g5 {[%emt 0:11:34]} Nd7 {[%emt 0:00:00]} 23. Ne4 {[%emt 0:06:42]} Be5 {[%emt 0:02:15]} 24. Bxe5 {[%emt 0:03:42]} Rxe5 {[%emt 0:06:52]} 25. f4 {[%emt 0:00:45]} R5e7 {[%emt 0:00:27]} 26. f5 {[%emt 0:01:23]} Ne5 {[%emt 0:04:24]} 27. Nf6+ {[%emt 0:04:41]} Kh8 {[%emt 0:00:14]} 28. Nxe8 {[%emt 0:03:44]} Rxe8 {[%emt 0:00:27]} 29. fxg6 {[%emt 0:01:11]} Qd7 {[%emt 0:00:15]} 30. Bf5 {[%emt 0:02:32]} 1-0

[Event "World Senior chT-65 2019"]
[Site "Rhodes"]
[Date "2019.04.18"]
[Round "3.12"]
[White "Hedin, Gunnar"]
[Black "Kivimaki, Jaakko"]
[Result "0-1"]
[ECO "A13"]
[WhiteElo "2195"]
[BlackElo "2165"]
[PlyCount "90"]
[EventDate "2019.04.16"]
[EventType "team-tourn"]
[EventCountry "GRE"]
[TimeControl "40/5400+30:1800+30"]

1. c4 {[%emt 0:00:00]} e6 {[%emt 0:00:00]} 2. Nf3 {[%emt 0:00:19]} Nf6 {[%emt 0:00:00]} 3. g3 {[%emt 0:00:28]} c6 {[%emt 0:00:10]} 4. Bg2 {[%emt 0:00:15]} d5 {[%emt 0:00:04]} 5. b3 {[%emt 0:02:02]} b5 {[%emt 0:00:12]} 6. O-O {[%emt 0:03:59]} Be7 {[%emt 0:00:36]} 7. Bb2 {[%emt 0:10:13]} a5 {[%emt 0:01:15]} 8. cxb5 {[%emt 0:06:10]} cxb5 {[%emt 0:00:12]} 9. a3 {[%emt 0:00:10]} O-O {[%emt 0:03:28]} 10. d3 {[%emt 0:03:54]} Bb7 {[%emt 0:06:49]} 11. Nbd2 {[%emt 0:02:34]} Qb6 {[%emt 0:04:06]} 12. e3 {[%emt 0:10:08]} Nbd7 {[%emt 0:03:46]} 13. Qe2 {[%emt 0:05:13]} b4 {[%emt 0:01:36]} 14. a4 {[%emt 0:04:19]} Ba6 {[%emt 0:04:21]} 15. Rfc1 {[%emt 0:09:28]} Rac8 {[%emt 0:01:35]} 16. Ne5 {[%emt 0:06:47]} Nxe5 {[%emt 0:02:00]} 17. Bxe5 {[%emt 0:00:06]} Nd7 {[%emt 0:00:30]} 18. Bd4 {[%emt 0:02:07]} Qb7 {[%emt 0:05:11]} 19. e4 {[%emt 0:01:49]} Bf6 {[%emt 0:00:58]} 20. Bxf6 {[%emt 0:06:16]} Nxf6 {[%emt 0:00:09]} 21. exd5 {[%emt 0:00:52]} exd5 {[%emt 0:10:40]} 22. Nf3 {[%emt 0:12:40]} Rc3 {[%emt 0:03:23]} 23. Rxc3 {[%emt 0:01:12]} bxc3 {[%emt 0:00:06]} 24. Qc2 {[%emt 0:00:28]} Qb4 {[%emt 0:00:48]} 25. Rc1 {[%emt 0:00:35]} d4 {[%emt 0:00:58]} 26. Nxd4 {[%emt 0:00:48]} Qxd4 {[%emt 0:00:10]} 27. Qxc3 {[%emt 0:00:00]} Qxc3 {[%emt 0:01:04]} 28. Rxc3 {[%emt 0:00:02]} Rc8 {[%emt 0:00:08]} 29. Rxc8+ {[%emt 0:02:11]} Bxc8 {[%emt 0:00:06]} 30. Kf1 {[%emt 0:00:23]} Be6 {[%emt 0:00:23]} 31. Bc6 {[%emt 0:00:24]} Bxb3 {[%emt 0:00:12]} 32. Ke2 {[%emt 0:00:20]} Kf8 {[%emt 0:00:55]} 33. Ke3 {[%emt 0:00:21]} Ke7 {[%emt 0:00:12]} 34. h4 {[%emt 0:01:27]} Kd6 {[%emt 0:00:13]} 35. Bb5 {[%emt 0:00:02]} Nd5+ {[%emt 0:00:19]} 36. Kd4 {[%emt 0:02:14]} Nc7 {[%emt 0:00:35]} 37. Kc3 {[%emt 0:01:22]} Bd1 {[%emt 0:00:21]} 38. Bc4 {[%emt 0:00:16]} Nd5+ {[%emt 0:00:10]} 39. Kd4 {[%emt 0:00:22]} Bf3 {[%emt 0:02:45]} 40. Bb3 {[%emt 0:00:00]} f6 {[%emt 0:00:00]} 41. Kc4 {[%emt 0:02:57]} Nc7 {[%emt 0:01:59]} 42. Kd4 {[%emt 0:01:09]} Bc6 {[%emt 0:00:33]} 43. Kc3 {[%emt 0:02:13]} Nd5+ {[%emt 0:00:08]} 44. Kb2 {[%emt 0:00:40]} Nb6 {[%emt 0:00:14]} 45. Ka3 {[%emt 0:00:28]} Kc5 {[%emt 0:00:15]} 0-1

[Event "World Senior chT-65 2019"]
[Site "Rhodes"]
[Date "2019.04.18"]
[Round "3.13"]
[White "Birnboim, Nathan"]
[Black "Herzog, Adolf"]
[Result "1-0"]
[ECO "D16"]
[WhiteElo "2365"]
[BlackElo "2337"]
[PlyCount "81"]
[EventDate "2019.04.16"]
[EventType "team-tourn"]
[EventCountry "GRE"]
[TimeControl "40/5400+30:1800+30"]

1. d4 {[%emt 0:00:00]} d5 {[%emt 0:00:00]} 2. c4 {[%emt 0:00:00]} c6 {[%emt 0:00:02]} 3. Nf3 {[%emt 0:00:00]} Nf6 {[%emt 0:00:10]} 4. Nc3 {[%emt 0:02:16]} dxc4 {[%emt 0:00:09]} 5. a4 {[%emt 0:00:07]} Bf5 {[%emt 0:02:11]} 6. e3 {[%emt 0:04:27]} Na6 {[%emt 0:05:15]} 7. Bxc4 {[%emt 0:00:49]} Nb4 {[%emt 0:00:59]} 8. O-O {[%emt 0:00:50]} e6 {[%emt 0:00:07]} 9. a5 {[%emt 0:14:49]} Be7 {[%emt 0:05:29]} 10. Bd2 {[%emt 0:18:53]} O-O {[%emt 0:02:22]} 11. Ne2 {[%emt 0:15:40]} Bc2 {[%emt 0:15:09]} 12. Qc1 {[%emt 0:00:36]} Be4 {[%emt 0:01:41]} 13. Ne5 {[%emt 0:00:25]} Bd5 {[%emt 0:02:22]} 14. a6 {[%emt 0:08:02]} Qb6 {[%emt 0:06:49]} 15. Nc3 {[%emt 0:15:05]} Rfc8 {[%emt 0:13:19]} 16. Na4 {[%emt 0:00:00]} Qc7 {[%emt 0:00:18]} 17. Bxb4 {[%emt 0:00:00]} Bxb4 {[%emt 0:00:06]} 18. Bxd5 {[%emt 0:00:00]} cxd5 {[%emt 0:03:19]} 19. Qxc7 {[%emt 0:00:00]} Rxc7 {[%emt 0:00:06]} 20. axb7 {[%emt 0:00:00]} Rxb7 {[%emt 0:01:11]} 21. Rfc1 {[%emt 0:00:00]} g6 {[%emt 0:02:37]} 22. Rc6 {[%emt 0:00:00]} a5 {[%emt 0:01:41]} 23. Kf1 {[%emt 0:00:00]} Kg7 {[%emt 0:02:33]} 24. Ke2 {[%emt 0:00:00]} Rab8 {[%emt 0:00:47]} 25. Rac1 {[%emt 0:00:00]} Bf8 {[%emt 0:02:21]} 26. Nd3 {[%emt 0:01:22]} Ne4 {[%emt 0:02:05]} 27. Ra6 {[%emt 0:00:55]} Bb4 {[%emt 0:02:28]} 28. Rc2 {[%emt 0:00:12]} h5 {[%emt 0:01:20]} 29. f3 {[%emt 0:00:39]} Nf6 {[%emt 0:01:11]} 30. Ne5 {[%emt 0:00:32]} Ne8 {[%emt 0:07:29]} 31. Nc6 {[%emt 0:02:38]} Rc7 {[%emt 0:00:16]} 32. e4 {[%emt 0:02:24]} dxe4 {[%emt 0:03:31]} 33. fxe4 {[%emt 0:00:02]} Bf8 {[%emt 0:04:28]} 34. Nb6 {[%emt 0:01:07]} Rbb7 {[%emt 0:00:21]} 35. Kd3 {[%emt 0:00:21]} Bb4 {[%emt 0:03:49]} 36. h3 {[%emt 0:00:42]} h4 {[%emt 0:01:09]} 37. Nc4 {[%emt 0:03:32]} Nf6 {[%emt 0:01:19]} 38. N6xa5 {[%emt 0:04:11]} Rb5 {[%emt 0:03:52]} 39. Nc6 {[%emt 0:00:32]} Be1 {[%emt 0:01:57]} 40. Nd6 {[%emt 0:00:00]} Rb3+ {[%emt 0:04:27]} 41. Ke2 {[%emt 0:00:01]} 1-0

[Event "World Senior chT-65 2019"]
[Site "Rhodes"]
[Date "2019.04.18"]
[Round "3.14"]
[White "Petschar, Kurt"]
[Black "Berkovich, Mark A"]
[Result "1/2-1/2"]
[ECO "E19"]
[WhiteElo "2226"]
[BlackElo "2332"]
[PlyCount "58"]
[EventDate "2019.04.16"]
[EventType "team-tourn"]
[EventCountry "GRE"]
[TimeControl "40/5400+30:1800+30"]

1. d4 {[%emt 0:00:13]} Nf6 {[%emt 0:00:11]} 2. c4 {[%emt 0:00:00]} e6 {[%emt 0:00:00]} 3. Nf3 {[%emt 0:00:40]} b6 {[%emt 0:00:35]} 4. g3 {[%emt 0:00:00]} Bb7 {[%emt 0:01:16]} 5. Bg2 {[%emt 0:00:00]} Be7 {[%emt 0:00:06]} 6. O-O {[%emt 0:00:00]} O-O {[%emt 0:01:32]} 7. Nc3 {[%emt 0:02:00]} Ne4 {[%emt 0:00:00]} 8. Qc2 {[%emt 0:00:06]} Nxc3 {[%emt 0:00:06]} 9. Qxc3 {[%emt 0:00:03]} c5 {[%emt 0:00:56]} 10. Rd1 {[%emt 0:00:07]} d6 {[%emt 0:18:35]} 11. b3 {[%emt 0:15:47]} Nc6 {[%emt 0:00:00]} 12. Bb2 {[%emt 0:00:23]} Bf6 {[%emt 0:00:00]} 13. Qd2 {[%emt 0:00:15]} Qe7 {[%emt 0:03:22]} 14. d5 {[%emt 0:03:03]} exd5 {[%emt 0:00:00]} 15. Bxf6 {[%emt 0:00:43]} Qxf6 {[%emt 0:00:17]} 16. Qxd5 {[%emt 0:00:13]} Rad8 {[%emt 0:08:04]} 17. Qg5 {[%emt 0:01:00]} Qe6 {[%emt 0:14:57]} 18. Qd2 {[%emt 0:13:19]} h6 {[%emt 0:02:40]} 19. Nh4 {[%emt 0:13:02]} Rfe8 {[%emt 0:00:00]} 20. e3 {[%emt 0:05:20]} g5 {[%emt 0:03:50]} 21. Bd5 {[%emt 0:00:00]} Qf6 {[%emt 0:02:55]} 22. Nf3 {[%emt 0:03:06]} Re7 {[%emt 0:00:24]} 23. Rac1 {[%emt 0:00:00]} Na5 24. Bxb7 {[%emt 0:08:48]} Nxb7 {[%emt 0:00:20]} 25. Kg2 {[%emt 0:03:37]} Kg7 {[%emt 0:06:25]} 26. Qc2 {[%emt 0:10:23]} Na5 {[%emt 0:09:51]} 27. Rd2 {[%emt 0:00:00]} Nc6 {[%emt 0:03:33]} 28. Rcd1 {[%emt 0:00:00]} Re6 {[%emt 0:01:13]} 29. h3 {[%emt 0:03:57]} Ne7 {[%emt 0:03:34]} 1/2-1/2

[Event "World Senior chT-65 2019"]
[Site "Rhodes"]
[Date "2019.04.18"]
[Round "3.15"]
[White "Maryasin, Boris"]
[Black "Singer, Hans"]
[Result "1/2-1/2"]
[ECO "C54"]
[WhiteElo "2297"]
[BlackElo "2195"]
[PlyCount "50"]
[EventDate "2019.04.16"]
[EventType "team-tourn"]
[EventCountry "GRE"]
[TimeControl "40/5400+30:1800+30"]

1. e4 {[%emt 0:00:13]} e5 {[%emt 0:00:13]} 2. Nf3 {[%emt 0:00:00]} Nc6 {[%emt 0:00:00]} 3. Bc4 {[%emt 0:00:38]} Bc5 {[%emt 0:01:22]} 4. c3 {[%emt 0:00:23]} Nf6 {[%emt 0:00:29]} 5. d4 {[%emt 0:00:26]} exd4 6. e5 {[%emt 0:02:04]} d5 {[%emt 0:08:33]} 7. Bb5 {[%emt 0:00:00]} Ne4 8. cxd4 {[%emt 0:01:32]} Bb4+ {[%emt 0:00:08]} 9. Bd2 {[%emt 0:00:00]} Nxd2 10. Nbxd2 {[%emt 0:02:33]} O-O {[%emt 0:02:30]} 11. O-O {[%emt 0:00:00]} Ne7 12. Nb3 {[%emt 0:04:10]} Nf5 {[%emt 0:00:13]} 13. Bd3 {[%emt 0:04:48]} g6 {[%emt 0:03:04]} 14. Rc1 {[%emt 0:01:13]} Be7 {[%emt 0:02:41]} 15. Nc5 {[%emt 0:00:00]} Ng7 16. Qb3 {[%emt 0:00:00]} b6 17. Na6 {[%emt 0:01:42]} Ne6 {[%emt 0:02:01]} 18. Nb4 {[%emt 0:00:33]} Bxb4 {[%emt 0:00:33]} 19. Qxb4 {[%emt 0:05:33]} c5 {[%emt 0:01:00]} 20. Qd2 {[%emt 0:00:00]} Qe7 21. Rfe1 {[%emt 0:06:00]} Bb7 {[%emt 0:00:40]} 22. h4 {[%emt 0:00:00]} Rac8 23. h5 {[%emt 0:01:39]} Kg7 24. g3 {[%emt 0:07:07]} f5 {[%emt 0:51:03]} 25. Bf1 {[%emt 0:09:09]} g5 {[%emt 0:04:00]} 1/2-1/2

[Event "World Senior chT-65 2019"]
[Site "Rhodes"]
[Date "2019.04.18"]
[Round "3.16"]
[White "Ager, Josef"]
[Black "Lederman, Leon"]
[Result "1-0"]
[ECO "A12"]
[WhiteElo "2122"]
[BlackElo "2281"]
[PlyCount "147"]
[EventDate "2019.04.16"]
[EventType "team-tourn"]
[EventCountry "GRE"]
[TimeControl "40/5400+30:1800+30"]

1. Nf3 {[%emt 0:00:00]} d5 {[%emt 0:00:00]} 2. g3 {[%emt 0:00:00]} Nf6 {[%emt 0:00:02]} 3. Bg2 {[%emt 0:00:00]} c6 {[%emt 0:00:04]} 4. c4 {[%emt 0:00:00]} Bf5 {[%emt 0:00:13]} 5. b3 {[%emt 0:00:11]} e6 {[%emt 0:00:05]} 6. O-O {[%emt 0:00:10]} h6 {[%emt 0:00:04]} 7. d3 {[%emt 0:00:06]} Be7 {[%emt 0:00:04]} 8. Bb2 {[%emt 0:00:07]} O-O {[%emt 0:00:05]} 9. Nbd2 {[%emt 0:00:11]} a5 {[%emt 0:00:05]} 10. a3 {[%emt 0:00:28]} Nbd7 {[%emt 0:00:07]} 11. Re1 {[%emt 0:00:17]} Nc5 {[%emt 0:01:37]} 12. Bc3 {[%emt 0:03:10]} Bh7 {[%emt 0:02:56]} 13. b4 {[%emt 0:02:25]} axb4 {[%emt 0:03:01]} 14. axb4 {[%emt 0:00:10]} Na6 {[%emt 0:00:01]} 15. Qb3 {[%emt 0:00:51]} dxc4 {[%emt 0:05:43]} 16. dxc4 {[%emt 0:01:33]} Ne4 {[%emt 0:03:23]} 17. Nxe4 {[%emt 0:00:52]} Bxe4 {[%emt 0:00:05]} 18. Red1 {[%emt 0:05:11]} Qc8 {[%emt 0:13:20]} 19. Qb2 {[%emt 0:00:46]} f6 {[%emt 0:00:08]} 20. c5 {[%emt 0:02:49]} Nc7 {[%emt 0:08:54]} 21. Rxa8 {[%emt 0:04:20]} Qxa8 {[%emt 0:03:24]} 22. Bh3 {[%emt 0:02:42]} Rd8 {[%emt 0:02:04]} 23. Ra1 {[%emt 0:00:47]} Qc8 {[%emt 0:01:12]} 24. Nd4 {[%emt 0:00:39]} Bf8 {[%emt 0:06:37]} 25. f3 {[%emt 0:04:55]} Bg6 {[%emt 0:07:48]} 26. e4 {[%emt 0:03:52]} Bf7 {[%emt 0:00:07]} 27. Qe2 {[%emt 0:07:27]} Qb8 {[%emt 0:08:38]} 28. Bf1 {[%emt 0:01:58]} e5 {[%emt 0:01:09]} 29. Nf5 {[%emt 0:05:03]} g6 {[%emt 0:06:18]} 30. Ne3 {[%emt 0:01:02]} b6 {[%emt 0:00:09]} 31. Ng4 {[%emt 0:06:16]} Bg7 {[%emt 0:01:43]} 32. Bd2 {[%emt 0:03:33]} Kh7 {[%emt 0:00:40]} 33. Be3 {[%emt 0:01:00]} bxc5 {[%emt 0:00:06]} 34. Bxc5 {[%emt 0:00:11]} Nb5 {[%emt 0:00:25]} 35. Be7 {[%emt 0:01:19]} Nd4 {[%emt 0:00:23]} 36. Qf2 {[%emt 0:05:31]} Rd6 {[%emt 0:00:55]} 37. Bxd6 {[%emt 0:01:25]} Qxd6 {[%emt 0:00:04]} 38. Ra7 {[%emt 0:04:00]} Qe6 {[%emt 0:03:14]} 39. Kg2 {[%emt 0:04:05]} h5 {[%emt 0:02:05]} 40. Ne3 {[%emt 0:01:25]} Qb3 {[%emt 0:00:07]} 41. Qd2 {[%emt 0:03:46]} Be6 {[%emt 0:01:33]} 42. Bd3 {[%emt 0:09:29]} Kh8 {[%emt 0:03:24]} 43. Ra8+ {[%emt 0:03:34]} Kh7 {[%emt 0:00:05]} 44. Nd1 {[%emt 0:04:48]} Bg8 {[%emt 0:02:56]} 45. Ra1 {[%emt 0:01:59]} Bf8 {[%emt 0:12:03]} 46. Rb1 {[%emt 0:01:09]} Qa3 {[%emt 0:03:00]} 47. Qc3 {[%emt 0:04:34]} Qa2+ {[%emt 0:02:28]} 48. Qb2 {[%emt 0:00:32]} Qa7 {[%emt 0:01:12]} 49. Nc3 {[%emt 0:02:47]} h4 {[%emt 0:03:03]} 50. gxh4 {[%emt 0:04:34]} Ne6 {[%emt 0:02:59]} 51. Ne2 {[%emt 0:00:09]} Qe3 {[%emt 0:00:35]} 52. Ba6 {[%emt 0:04:02]} Nc7 {[%emt 0:08:25]} 53. Ra1 {[%emt 0:01:59]} Nxa6 {[%emt 0:03:07]} 54. Rxa6 {[%emt 0:00:17]} Bc4 {[%emt 0:00:05]} 55. Rxc6 {[%emt 0:01:56]} Bxe2 {[%emt 0:07:03]} 56. Rxf6 {[%emt 0:01:06]} Be7 {[%emt 0:00:07]} 57. Rf7+ {[%emt 0:01:07]} Kh6 {[%emt 0:00:05]} 58. Qxe5 {[%emt 0:00:47]} Bxf3+ {[%emt 0:02:40]} 59. Rxf3 {[%emt 0:00:09]} Qe2+ {[%emt 0:00:06]} 60. Kg3 {[%emt 0:00:51]} Qe1+ {[%emt 0:00:50]} 61. Kg2 {[%emt 0:02:13]} Qe2+ {[%emt 0:00:11]} 62. Rf2 {[%emt 0:00:12]} Qg4+ {[%emt 0:00:06]} 63. Qg3 {[%emt 0:00:59]} Qxe4+ {[%emt 0:00:06]} 64. Rf3 {[%emt 0:00:34]} Qc2+ {[%emt 0:04:50]} 65. Kh3 {[%emt 0:00:24]} Qc8+ {[%emt 0:01:35]} 66. Qg4 {[%emt 0:00:14]} Qxg4+ {[%emt 0:00:03]} 67. Kxg4 {[%emt 0:00:12]} Bxb4 {[%emt 0:00:02]} 68. Rf6 {[%emt 0:00:13]} Kg7 {[%emt 0:00:09]} 69. Rb6 {[%emt 0:00:14]} Bc5 {[%emt 0:00:42]} 70. Rc6 {[%emt 0:00:13]} Bd4 {[%emt 0:00:05]} 71. Re6 {[%emt 0:00:46]} Bc3 {[%emt 0:00:17]} 72. Rc6 {[%emt 0:00:27]} Bd4 {[%emt 0:00:20]} 73. h5 {[%emt 0:00:08]} gxh5+ {[%emt 0:00:06]} 74. Kxh5 {[%emt 0:00:06]} 1-0

[Event "World Senior chT-65 2019"]
[Site "Rhodes"]
[Date "2019.04.18"]
[Round "3.17"]
[White "Page, Mark E"]
[Black "Jones, Iolo C"]
[Result "1/2-1/2"]
[ECO "C42"]
[WhiteElo "2107"]
[BlackElo "2187"]
[PlyCount "72"]
[EventDate "2019.04.16"]
[EventType "team-tourn"]
[EventCountry "GRE"]
[TimeControl "40/5400+30:1800+30"]

1. e4 {[%emt 0:00:00]} e5 {[%emt 0:00:00]} 2. Nf3 {[%emt 0:00:00]} Nf6 {[%emt 0:00:07]} 3. Nxe5 {[%emt 0:00:07]} d6 {[%emt 0:00:11]} 4. Nf3 {[%emt 0:00:06]} Nxe4 {[%emt 0:00:16]} 5. Bd3 {[%emt 0:01:03]} Nc5 {[%emt 0:01:49]} 6. Be2 {[%emt 0:00:17]} d5 {[%emt 0:02:18]} 7. d4 {[%emt 0:02:09]} Ne4 {[%emt 0:02:24]} 8. O-O {[%emt 0:00:49]} Be7 {[%emt 0:01:55]} 9. c4 {[%emt 0:05:12]} dxc4 {[%emt 0:06:48]} 10. Bxc4 {[%emt 0:00:39]} O-O {[%emt 0:03:02]} 11. Re1 {[%emt 0:04:40]} Nd6 {[%emt 0:03:06]} 12. Bb3 {[%emt 0:08:20]} Bf6 {[%emt 0:05:18]} 13. h3 {[%emt 0:12:20]} Nf5 {[%emt 0:05:48]} 14. d5 {[%emt 0:01:38]} Re8 {[%emt 0:06:07]} 15. Nc3 {[%emt 0:02:41]} Nd6 {[%emt 0:03:21]} 16. Bf4 {[%emt 0:03:17]} Rxe1+ {[%emt 0:07:13]} 17. Qxe1 {[%emt 0:00:17]} Nd7 {[%emt 0:02:27]} 18. Rc1 {[%emt 0:10:52]} Nc5 {[%emt 0:08:43]} 19. Bc2 {[%emt 0:01:17]} Bd7 {[%emt 0:03:37]} 20. b4 {[%emt 0:15:12]} Na6 {[%emt 0:01:16]} 21. Ne4 {[%emt 0:00:58]} Be7 {[%emt 0:03:59]} 22. Bd3 {[%emt 0:06:13]} g6 {[%emt 0:10:36]} 23. Bxa6 {[%emt 0:04:40]} bxa6 {[%emt 0:00:27]} 24. Nc5 {[%emt 0:00:28]} a5 {[%emt 0:02:54]} 25. bxa5 {[%emt 0:05:35]} Bf6 {[%emt 0:05:32]} 26. Ne5 {[%emt 0:05:27]} Be8 {[%emt 0:01:16]} 27. Na6 {[%emt 0:01:52]} g5 {[%emt 0:04:16]} 28. Bh2 {[%emt 0:01:31]} Rc8 {[%emt 0:01:02]} 29. Ng4 {[%emt 0:01:42]} Bb2 {[%emt 0:02:28]} 30. Rc2 {[%emt 0:00:43]} Bg7 {[%emt 0:01:01]} 31. Nb4 {[%emt 0:01:49]} Nb5 {[%emt 0:02:21]} 32. Nc6 {[%emt 0:01:34]} Bxc6 {[%emt 0:00:25]} 33. dxc6 {[%emt 0:00:01]} Nd4 {[%emt 0:00:43]} 34. Rc1 {[%emt 0:01:12]} Qe8 {[%emt 0:00:41]} 35. Qxe8+ {[%emt 0:01:06]} Rxe8 {[%emt 0:00:09]} 36. Kf1 {[%emt 0:00:03]} Re6 {[%emt 0:00:36]} 1/2-1/2